[Event "FIDE Open World Rapid 2024"]
[Site "New York"]
[Date "2024.12.27"]
[Round "6.16"]
[White "Samadov, Read"]
[Black "Indjic, Aleksandar"]
[Result "1-0"]
[ECO "E73"]
[WhiteElo "2501"]
[BlackElo "2647"]
[Annotator "ChessBase"]
[PlyCount "127"]
[EventDate "2024.12.14"]
[EventType "swiss"]
[EventCountry "USA"]
[SourceTitle "playchess.com"]
[Source "ChessBase"]
[SourceQuality "1"]
[TimeControl "900+10"]

1. d4 {[%emt 0:00:04]} Nf6 {[%emt 0:00:09]} 2. c4 {[%emt 0:00:03]} c5 {[%emt 0:00:04]} 3. d5 {[%emt 0:00:03]} g6 {[%emt 0:00:01]} 4. Nc3 {[%emt 0:00:06]} Bg7 {[%emt 0:00:01]} 5. e4 {[%emt 0:00:06]} d6 {[%emt 0:00:02]} 6. Be2 {[%emt 0:00:11]} O-O {[%emt 0:00:17]} 7. Be3 {[%emt 0:00:15]} e6 {[%emt 0:00:09]} 8. Nf3 {[%emt 0:00:08]} Re8 {[%emt 0:00:12]} 9. Nd2 {[%emt 0:00:07]} Nbd7 {[%emt 0:00:09]} 10. O-O {[%emt 0:00:59]} e5 {[%emt 0:00:12]} 11. g4 {[%emt 0:01:51]} h6 {[%emt 0:00:08]} 12. g5 {[%emt 0:01:59]} hxg5 {[%emt 0:00:03]} 13. Bxg5 {[%emt 0:00:04]} Nf8 {[%emt 0:00:10]} 14. Kh1 {[%emt 0:00:33]} N8h7 {[%emt 0:00:34]} 15. Be3 {[%emt 0:00:40]} Qe7 {[%emt 0:00:02]} 16. Rg1 {[%emt 0:03:05]} Qf8 {[%emt 0:00:01]} 17. Qf1 {[%emt 0:00:26]} Bh6 {[%emt 0:00:04]} 18. f4 {[%emt 0:00:11]} exf4 {[%emt 0:00:06]} 19. Bxf4 {[%emt 0:00:03]} a6 {[%emt 0:04:51]} 20. Qf2 {[%emt 0:00:38]} Nd7 {[%emt 0:00:02]} 21. Raf1 {[%emt 0:01:32]} Ne5 {[%emt 0:00:42]} 22. Bxe5 {[%emt 0:02:23]} Rxe5 {[%emt 0:00:01]} 23. Nf3 {[%emt 0:00:02]} Re8 {[%emt 0:00:33]} 24. h4 {[%emt 0:01:07]} Bf4 {[%emt 0:04:56]} 25. h5 {[%emt 0:00:53]} g5 {[%emt 0:00:01]} 26. Ne1 {[%emt 0:00:09]} Be5 {[%emt 0:00:02]} 27. Nf3 {[%emt 0:00:17]} Bf4 {[%emt 0:00:06]} 28. Ne1 {[%emt 0:00:02]} Be5 {[%emt 0:00:26]} 29. Nf3 {[%emt 0:00:02]} f6 {[%emt 0:00:10]} 30. Nxe5 {[%emt 0:00:40]} Rxe5 {[%emt 0:00:01]} 31. Qg3 {[%emt 0:00:38]} Kh8 {[%emt 0:00:36]} 32. Bg4 {[%emt 0:00:28]} Qe8 {[%emt 0:00:01]} 33. a4 {[%emt 0:00:26]} Bd7 {[%emt 0:00:21]} 34. a5 {[%emt 0:00:13]} b5 {[%emt 0:01:02]} 35. axb6 {[%emt 0:00:04]} Rb8 {[%emt 0:00:00]} 36. Rf2 {[%emt 0:00:23]} Rxb6 {[%emt 0:00:02]} 37. Qh3 {[%emt 0:00:08]} Bxg4 {[%emt 0:00:41]} 38. Qxg4 {[%emt 0:00:00]} Rb4 {[%emt 0:00:01]} 39. Ra1 {[%emt 0:00:12]} Rxc4 {[%emt 0:01:07]} 40. Rxa6 {[%emt 0:00:10]} Rcxe4 {[%emt 0:00:03]} 41. Nxe4 {[%emt 0:00:05]} Rxe4 {[%emt 0:00:02]} 42. Qf5 {[%emt 0:00:25]} Qxh5+ {[%emt 0:00:20]} 43. Kg1 {[%emt 0:00:03]} Qd1+ {[%emt 0:00:12]} 44. Rf1 {[%emt 0:00:12]} Qd4+ {[%emt 0:00:01]} 45. Kg2 {[%emt 0:00:13]} Rg4+ {[%emt 0:01:41]} 46. Kh3 {[%emt 0:00:01]} Rh4+ {[%emt 0:00:19]} 47. Kg2 {[%emt 0:00:02]} c4 {[%emt 0:00:39]} 48. Ra8+ {[%emt 0:00:10]} Kg7 {[%emt 0:00:01]} 49. Rd8 {[%emt 0:00:25]} Rg4+ {[%emt 0:00:54]} 50. Kh3 {[%emt 0:00:01]} Rh4+ {[%emt 0:00:07]} 51. Kg2 {[%emt 0:00:01]} Kh6 {[%emt 0:00:32]} 52. Rd7 {[%emt 0:00:18]} Rg4+ {[%emt 0:00:18]} 53. Kh3 {[%emt 0:00:01]} Rh4+ {[%emt 0:00:03]} 54. Kg3 {[%emt 0:00:28]} Qe3+ {[%emt 0:00:10]} 55. Kg2 {[%emt 0:00:10]} Qe2+ {[%emt 0:00:01]} 56. Rf2 {[%emt 0:00:03]} Rg4+ {[%emt 0:00:07]} 57. Kh3 {[%emt 0:00:04]} Rh4+ {[%emt 0:00:02]} 58. Kg2 {[%emt 0:00:03]} Rg4+ {[%emt 0:00:26]} 59. Kh3 {[%emt 0:00:01]} Rh4+ {[%emt 0:00:16]} 60. Kg3 {[%emt 0:00:04]} Qe5+ {[%emt 0:00:31]} 61. Qxe5 {[%emt 0:00:03]} dxe5 {[%emt 0:00:02]} 62. Rh2 {[%emt 0:00:05]} Nf8 {[%emt 0:00:18]} 63. Rf7 {[%emt 0:00:07]} Ng6 {[%emt 0:00:00]} 64. d6 {[%emt 0:00:12]} 1-0

[Event "FIDE Open World Rapid 2024"]
[Site "New York"]
[Date "2024.12.27"]
[Round "6.17"]
[White "Hovhannisyan, Robert"]
[Black "Tang, Andrew"]
[Result "0-1"]
[ECO "C48"]
[WhiteElo "2626"]
[BlackElo "2527"]
[Annotator "ChessBase"]
[PlyCount "87"]
[EventDate "2024.12.14"]
[EventType "swiss"]
[EventCountry "USA"]
[SourceTitle "playchess.com"]
[Source "ChessBase"]
[SourceQuality "1"]
[TimeControl "900+10"]

1. e4 {[%emt 0:00:01]} e5 {[%emt 0:00:01]} 2. Nf3 {[%emt 0:00:01]} Nc6 {[%emt 0:00:02]} 3. Nc3 {[%emt 0:00:03]} Nf6 {[%emt 0:00:02]} 4. Bb5 {[%emt 0:00:02]} Bc5 {[%emt 0:00:03]} 5. O-O {[%emt 0:00:07]} O-O {[%emt 0:00:03]} 6. Nxe5 {[%emt 0:00:02]} Nxe5 {[%emt 0:00:02]} 7. d4 {[%emt 0:00:02]} Bd6 {[%emt 0:00:01]} 8. dxe5 {[%emt 0:00:02]} Bxe5 {[%emt 0:00:03]} 9. Bd3 {[%emt 0:00:03]} h6 {[%emt 0:02:31]} 10. Nb5 {[%emt 0:02:30]} c6 {[%emt 0:05:49]} 11. f4 {[%emt 0:00:03]} Bb8 {[%emt 0:00:04]} 12. Nc3 {[%emt 0:01:02]} d6 {[%emt 0:00:12]} 13. h3 {[%emt 0:00:44]} Re8 {[%emt 0:01:19]} 14. Qf3 {[%emt 0:00:05]} Bc7 {[%emt 0:00:26]} 15. Bd2 {[%emt 0:00:29]} b5 {[%emt 0:01:37]} 16. Be1 {[%emt 0:01:09]} Nd7 {[%emt 0:01:56]} 17. Bf2 {[%emt 0:00:52]} Bb6 {[%emt 0:00:26]} 18. Kh1 {[%emt 0:00:23]} Nc5 {[%emt 0:00:54]} 19. Rad1 {[%emt 0:00:20]} Nxd3 {[%emt 0:00:34]} 20. Qxd3 {[%emt 0:01:11]} Bc7 {[%emt 0:00:36]} 21. f5 {[%emt 0:01:34]} b4 {[%emt 0:00:31]} 22. Ne2 {[%emt 0:00:26]} a5 {[%emt 0:00:04]} 23. Qf3 {[%emt 0:01:09]} Ba6 {[%emt 0:00:11]} 24. Rfe1 {[%emt 0:00:19]} Bxe2 {[%emt 0:00:27]} 25. Rxe2 {[%emt 0:00:11]} d5 {[%emt 0:00:01]} 26. Bg3 {[%emt 0:01:35]} Bxg3 {[%emt 0:00:14]} 27. Qxg3 {[%emt 0:00:02]} Qf6 {[%emt 0:00:01]} 28. b3 {[%emt 0:03:11]} Rxe4 {[%emt 0:01:08]} 29. Rxe4 {[%emt 0:00:02]} dxe4 {[%emt 0:00:01]} 30. Qf4 {[%emt 0:01:35]} Re8 {[%emt 0:00:10]} 31. Re1 {[%emt 0:00:05]} Re5 {[%emt 0:00:35]} 32. Rxe4 {[%emt 0:00:21]} Rxf5 {[%emt 0:00:02]} 33. Re8+ {[%emt 0:00:32]} Kh7 {[%emt 0:00:02]} 34. Qb8 {[%emt 0:00:01]} Qd4 {[%emt 0:00:23]} 35. Kh2 {[%emt 0:00:13]} Qd2 {[%emt 0:00:13]} 36. Rh8+ {[%emt 0:00:25]} Kg6 {[%emt 0:00:01]} 37. h4 {[%emt 0:00:14]} Rf4 {[%emt 0:00:18]} 38. Qd8 {[%emt 0:00:10]} Rd4 {[%emt 0:00:14]} 39. Qe7 {[%emt 0:00:09]} Qf4+ {[%emt 0:00:01]} 40. Kh3 {[%emt 0:00:07]} Qg4+ {[%emt 0:00:03]} 41. Kh2 {[%emt 0:00:01]} Qf4+ {[%emt 0:00:00]} 42. Kh3 {[%emt 0:00:06]} Rd1 {[%emt 0:00:33]} 43. h5+ {[%emt 0:00:16]} Kxh5 {[%emt 0:00:02]} 44. g3 {[%emt 0:00:35]} 0-1

[Event "FIDE Open World Rapid 2024"]
[Site "New York"]
[Date "2024.12.27"]
[Round "6.17"]
[White "Lu, Shanglei"]
[Black "Bjerre, Jonas Buhl"]
[Result "1/2-1/2"]
[ECO "C53"]
[WhiteElo "2609"]
[BlackElo "2642"]
[Annotator "ChessBase"]
[PlyCount "43"]
[EventDate "2024.12.14"]
[EventType "swiss"]
[EventCountry "USA"]
[SourceTitle "playchess.com"]
[Source "ChessBase"]
[SourceQuality "1"]
[TimeControl "900+10"]

1. e4 {[%emt 0:00:02]} e5 {[%emt 0:00:01]} 2. Nf3 {[%emt 0:00:02]} Nc6 {[%emt 0:00:01]} 3. Bc4 {[%emt 0:00:01]} Bc5 {[%emt 0:00:02]} 4. c3 {[%emt 0:00:05]} d6 {[%emt 0:00:05]} 5. d4 {[%emt 0:00:32]} Bb6 {[%emt 0:00:02]} 6. dxe5 {[%emt 0:00:51]} Bg4 {[%emt 0:00:02]} 7. exd6 {[%emt 0:00:25]} Nf6 {[%emt 0:00:07]} 8. O-O {[%emt 0:00:12]} O-O {[%emt 0:00:09]} 9. Bg5 {[%emt 0:01:28]} h6 {[%emt 0:00:05]} 10. Bh4 {[%emt 0:00:06]} g5 {[%emt 0:00:08]} 11. Bg3 {[%emt 0:00:13]} Nxe4 {[%emt 0:00:03]} 12. dxc7 {[%emt 0:00:11]} Qc8 {[%emt 0:00:01]} 13. Qc2 {[%emt 0:02:46]} Bf5 {[%emt 0:00:03]} 14. Bd3 {[%emt 0:00:01]} Nxg3 {[%emt 0:00:05]} 15. hxg3 {[%emt 0:00:02]} Bxd3 {[%emt 0:00:02]} 16. Qxd3 {[%emt 0:00:02]} Qxc7 {[%emt 0:00:01]} 17. Nbd2 {[%emt 0:01:00]} Qxg3 {[%emt 0:00:56]} 18. Qf5 {[%emt 0:00:06]} Qd6 {[%emt 0:00:22]} 19. Rad1 {[%emt 0:01:48]} Qg6 {[%emt 0:01:48]} 20. Qxg6+ {[%emt 0:00:58]} fxg6 {[%emt 0:00:02]} 21. Nc4 {[%emt 0:00:23]} g4 {[%emt 0:00:24]} 22. Nfd2 {[%emt 0:00:05]} 1/2-1/2

[Event "FIDE Open World Rapid 2024"]
[Site "New York"]
[Date "2024.12.27"]
[Round "6.18"]
[White "Bu, Xiangzhi"]
[Black "Deac, Bogdan-Daniel"]
[Result "1/2-1/2"]
[ECO "E56"]
[WhiteElo "2684"]
[BlackElo "2696"]
[Annotator "ChessBase"]
[PlyCount "185"]
[EventDate "2024.12.14"]
[EventType "swiss"]
[EventCountry "USA"]
[SourceTitle "playchess.com"]
[Source "ChessBase"]
[SourceQuality "1"]
[TimeControl "900+10"]

1. d4 {[%emt 0:00:02]} Nf6 {[%emt 0:00:01]} 2. c4 {[%emt 0:00:01]} e6 {[%emt 0:00:02]} 3. Nc3 {[%emt 0:00:02]} Bb4 {[%emt 0:00:02]} 4. e3 {[%emt 0:00:01]} O-O {[%emt 0:00:03]} 5. Bd3 {[%emt 0:00:02]} d5 {[%emt 0:00:08]} 6. Nf3 {[%emt 0:00:03]} dxc4 {[%emt 0:00:04]} 7. Bxc4 {[%emt 0:00:02]} c5 {[%emt 0:00:03]} 8. O-O {[%emt 0:00:15]} Nc6 {[%emt 0:00:02]} 9. a3 {[%emt 0:00:06]} Ba5 {[%emt 0:00:02]} 10. Qd3 {[%emt 0:00:06]} a6 {[%emt 0:00:10]} 11. dxc5 {[%emt 0:00:07]} Qxd3 {[%emt 0:00:19]} 12. Bxd3 {[%emt 0:00:01]} Bxc3 {[%emt 0:00:02]} 13. bxc3 {[%emt 0:00:01]} Na5 {[%emt 0:00:23]} 14. Bc2 {[%emt 0:01:01]} Bd7 {[%emt 0:02:45]} 15. e4 {[%emt 0:00:29]} Bc6 {[%emt 0:01:55]} 16. Re1 {[%emt 0:00:14]} Rfc8 {[%emt 0:01:15]} 17. Rb1 {[%emt 0:07:34]} Nd7 {[%emt 0:01:20]} 18. Nd4 {[%emt 0:00:59]} Nxc5 {[%emt 0:00:39]} 19. Nxc6 {[%emt 0:00:07]} Rxc6 {[%emt 0:00:20]} 20. Rd1 {[%emt 0:00:04]} b5 {[%emt 0:00:35]} 21. Rb4 {[%emt 0:00:19]} Nc4 {[%emt 0:01:58]} 22. a4 {[%emt 0:01:25]} Nxa4 {[%emt 0:00:19]} 23. Bxa4 {[%emt 0:00:01]} bxa4 {[%emt 0:00:02]} 24. Rxa4 {[%emt 0:00:04]} a5 {[%emt 0:01:04]} 25. Rd4 {[%emt 0:00:47]} Rac8 {[%emt 0:00:19]} 26. f4 {[%emt 0:00:39]} f6 {[%emt 0:02:00]} 27. h3 {[%emt 0:01:35]} h6 {[%emt 0:01:25]} 28. e5 {[%emt 0:00:47]} fxe5 {[%emt 0:00:33]} 29. fxe5 {[%emt 0:00:02]} Rc5 {[%emt 0:00:58]} 30. Ba3 {[%emt 0:00:01]} Nxa3 {[%emt 0:00:12]} 31. Rxa3 {[%emt 0:00:01]} Rxe5 {[%emt 0:00:03]} 32. Rd7 {[%emt 0:00:55]} Kh7 {[%emt 0:01:03]} 33. Ra7 {[%emt 0:00:12]} Rcc5 {[%emt 0:00:10]} 34. c4 {[%emt 0:00:08]} Rg5 {[%emt 0:00:17]} 35. Ra6 {[%emt 0:00:32]} Rxc4 {[%emt 0:00:06]} 36. R6xa5 {[%emt 0:00:07]} Rc1+ {[%emt 0:00:11]} 37. Kh2 {[%emt 0:00:00]} Rxa5 {[%emt 0:00:15]} 38. Rxa5 {[%emt 0:00:01]} Kg6 {[%emt 0:00:02]} 39. Kg3 {[%emt 0:00:04]} Rf1 {[%emt 0:00:03]} 40. h4 {[%emt 0:00:26]} Kf6 {[%emt 0:00:14]} 41. Ra8 {[%emt 0:00:01]} Rf5 {[%emt 0:00:02]} 42. Ra6 {[%emt 0:00:24]} g6 {[%emt 0:00:27]} 43. Rb6 {[%emt 0:00:19]} h5 {[%emt 0:00:13]} 44. Ra6 {[%emt 0:00:07]} Rf1 {[%emt 0:00:06]} 45. Ra8 {[%emt 0:00:07]} Rf5 {[%emt 0:00:08]} 46. Ra6 {[%emt 0:00:01]} Rb5 {[%emt 0:00:04]} 47. Kf3 {[%emt 0:00:54]} Kf5 {[%emt 0:00:06]} 48. Ra3 {[%emt 0:00:38]} Rb4 {[%emt 0:00:10]} 49. g3 {[%emt 0:00:30]} e5 {[%emt 0:00:02]} 50. Ra5 {[%emt 0:00:32]} Rb3+ {[%emt 0:00:27]} 51. Kg2 {[%emt 0:00:13]} Rd3 {[%emt 0:00:02]} 52. Ra6 {[%emt 0:00:09]} Rd4 {[%emt 0:00:21]} 53. Kf3 {[%emt 0:00:06]} Rd2 {[%emt 0:00:07]} 54. Ke3 {[%emt 0:00:05]} Rb2 {[%emt 0:00:06]} 55. Rc6 {[%emt 0:00:06]} Rb3+ {[%emt 0:00:12]} 56. Kf2 {[%emt 0:00:01]} e4 {[%emt 0:00:07]} 57. Rc5+ {[%emt 0:00:24]} Kg4 {[%emt 0:00:02]} 58. Rg5+ {[%emt 0:00:01]} Kh3 {[%emt 0:00:02]} 59. Rxg6 {[%emt 0:00:00]} Rf3+ {[%emt 0:00:01]} 60. Ke2 {[%emt 0:00:01]} Rxg3 {[%emt 0:00:02]} 61. Re6 {[%emt 0:00:01]} Rg4 {[%emt 0:00:05]} 62. Re5 {[%emt 0:00:05]} Kxh4 {[%emt 0:00:54]} 63. Ke3 {[%emt 0:00:16]} Rg3+ {[%emt 0:00:14]} 64. Kxe4 {[%emt 0:00:14]} Kg4 {[%emt 0:00:01]} 65. Re8 {[%emt 0:00:17]} h4 {[%emt 0:00:09]} 66. Rg8+ {[%emt 0:00:03]} Kh3 {[%emt 0:00:02]} 67. Rh8 {[%emt 0:00:01]} Ra3 {[%emt 0:00:24]} 68. Kf4 {[%emt 0:00:02]} Rb3 {[%emt 0:00:07]} 69. Rh7 {[%emt 0:00:01]} Rb1 {[%emt 0:00:15]} 70. Kf3 {[%emt 0:00:06]} Rf1+ {[%emt 0:00:03]} 71. Ke2 {[%emt 0:00:00]} Rf5 {[%emt 0:00:02]} 72. Rh8 {[%emt 0:00:03]} Kg3 {[%emt 0:00:02]} 73. Rg8+ {[%emt 0:00:01]} Kh2 {[%emt 0:00:01]} 74. Rh8 {[%emt 0:00:03]} h3 {[%emt 0:00:02]} 75. Rh7 {[%emt 0:00:02]} Kg2 {[%emt 0:00:20]} 76. Rg7+ {[%emt 0:00:01]} Kh1 {[%emt 0:00:03]} 77. Rg8 {[%emt 0:00:05]} h2 {[%emt 0:00:02]} 78. Rg7 {[%emt 0:00:02]} Ra5 {[%emt 0:00:01]} 79. Kf2 {[%emt 0:00:02]} Ra2+ {[%emt 0:00:02]} 80. Kf1 {[%emt 0:00:01]} Ra1+ {[%emt 0:00:01]} 81. Kf2 {[%emt 0:00:00]} Rg1 {[%emt 0:00:03]} 82. Ra7 {[%emt 0:00:14]} Rg2+ {[%emt 0:00:04]} 83. Kf1 {[%emt 0:00:20]} Rg8 {[%emt 0:00:04]} 84. Rf7 {[%emt 0:00:02]} Ra8 {[%emt 0:00:19]} 85. Rf6 {[%emt 0:00:04]} Ra1+ {[%emt 0:00:47]} 86. Kf2 {[%emt 0:00:02]} Ra2+ {[%emt 0:00:02]} 87. Kf1 {[%emt 0:00:00]} Rb2 {[%emt 0:00:04]} 88. Rf5 {[%emt 0:00:02]} Rc2 {[%emt 0:00:04]} 89. Rf6 {[%emt 0:00:01]} Rc1+ {[%emt 0:00:14]} 90. Kf2 {[%emt 0:00:01]} Rg1 {[%emt 0:00:02]} 91. Ra6 {[%emt 0:00:01]} Rg2+ {[%emt 0:00:04]} 92. Kf1 {[%emt 0:00:01]} Rg5 {[%emt 0:00:04]} 93. Rf6 {[%emt 0:00:01]} 1/2-1/2

[Event "FIDE Open World Rapid 2024"]
[Site "New York"]
[Date "2024.12.27"]
[Round "6.18"]
[White "Suleymenov, Alisher"]
[Black "Kevlishvili, Robby"]
[Result "1/2-1/2"]
[ECO "D37"]
[WhiteElo "2500"]
[BlackElo "2556"]
[Annotator "ChessBase"]
[PlyCount "142"]
[EventDate "2024.12.14"]
[EventType "swiss"]
[EventCountry "USA"]
[SourceTitle "playchess.com"]
[Source "ChessBase"]
[SourceQuality "1"]
[TimeControl "900+10"]

1. d4 {[%emt 0:00:02]} d5 {[%emt 0:00:11]} 2. c4 {[%emt 0:00:02]} e6 {[%emt 0:00:02]} 3. Nf3 {[%emt 0:00:02]} Nd7 {[%emt 0:00:07]} 4. Nc3 {[%emt 0:00:36]} Ngf6 {[%emt 0:00:04]} 5. Bf4 {[%emt 0:00:48]} dxc4 {[%emt 0:00:15]} 6. e3 {[%emt 0:00:02]} Bd6 {[%emt 0:00:18]} 7. Bxd6 {[%emt 0:00:04]} cxd6 {[%emt 0:00:02]} 8. Bxc4 {[%emt 0:00:02]} Nb6 {[%emt 0:00:05]} 9. Bd3 {[%emt 0:00:51]} O-O {[%emt 0:01:40]} 10. O-O {[%emt 0:00:12]} Bd7 {[%emt 0:00:28]} 11. e4 {[%emt 0:00:19]} Bc6 {[%emt 0:00:17]} 12. Re1 {[%emt 0:00:20]} Rc8 {[%emt 0:00:26]} 13. a4 {[%emt 0:04:28]} a5 {[%emt 0:01:54]} 14. Qd2 {[%emt 0:01:11]} h6 {[%emt 0:00:25]} 15. b3 {[%emt 0:00:29]} Na8 {[%emt 0:00:53]} 16. Rac1 {[%emt 0:01:05]} Qb6 {[%emt 0:00:57]} 17. d5 {[%emt 0:02:00]} exd5 {[%emt 0:00:11]} 18. exd5 {[%emt 0:00:02]} Bd7 {[%emt 0:00:29]} 19. Nd4 {[%emt 0:02:32]} Nc7 {[%emt 0:00:41]} 20. Bc4 {[%emt 0:00:18]} Rfe8 {[%emt 0:00:23]} 21. h3 {[%emt 0:00:10]} Qb4 {[%emt 0:01:09]} 22. Nc2 {[%emt 0:01:14]} Qc5 {[%emt 0:00:14]} 23. Qd4 {[%emt 0:00:07]} Rxe1+ {[%emt 0:02:20]} 24. Rxe1 {[%emt 0:00:02]} Qxd4 {[%emt 0:01:00]} 25. Nxd4 {[%emt 0:00:01]} Na8 {[%emt 0:00:02]} 26. Ndb5 {[%emt 0:00:46]} Ne8 {[%emt 0:00:38]} 27. Ne4 {[%emt 0:00:24]} Bxb5 {[%emt 0:00:20]} 28. Bxb5 {[%emt 0:00:02]} Nac7 {[%emt 0:01:06]} 29. Rc1 {[%emt 0:00:21]} Rd8 {[%emt 0:00:01]} 30. Bxe8 {[%emt 0:00:16]} Nxe8 {[%emt 0:00:02]} 31. g4 {[%emt 0:00:34]} Kf8 {[%emt 0:00:11]} 32. Kf1 {[%emt 0:00:02]} Ke7 {[%emt 0:00:14]} 33. Ke2 {[%emt 0:00:01]} Kd7 {[%emt 0:00:08]} 34. Kd3 {[%emt 0:00:21]} Nc7 {[%emt 0:00:22]} 35. Kd4 {[%emt 0:00:01]} Rf8 {[%emt 0:01:05]} 36. Ng3 {[%emt 0:00:20]} Re8 {[%emt 0:00:15]} 37. f4 {[%emt 0:00:02]} Na6 {[%emt 0:00:11]} 38. Ne4 {[%emt 0:00:04]} Nb4 {[%emt 0:00:10]} 39. h4 {[%emt 0:00:15]} Rb8 {[%emt 0:00:38]} 40. h5 {[%emt 0:00:16]} Re8 {[%emt 0:01:01]} 41. Rc3 {[%emt 0:00:22]} Na6 {[%emt 0:00:13]} 42. g5 {[%emt 0:00:14]} Rh8 {[%emt 0:00:29]} 43. Rg3 {[%emt 0:00:19]} hxg5 {[%emt 0:00:14]} 44. Rxg5 {[%emt 0:00:02]} Rh7 {[%emt 0:00:02]} 45. Ng3 {[%emt 0:00:15]} Nc7 {[%emt 0:00:13]} 46. Rg4 {[%emt 0:00:35]} Ne8 {[%emt 0:00:12]} 47. Rg5 {[%emt 0:00:04]} Ke7 {[%emt 0:00:02]} 48. Kc4 {[%emt 0:00:09]} Kf6 {[%emt 0:00:31]} 49. Kb5 {[%emt 0:00:07]} g6 {[%emt 0:00:03]} 50. Kxa5 {[%emt 0:00:10]} gxh5 {[%emt 0:00:03]} 51. Nxh5+ {[%emt 0:00:16]} Ke7 {[%emt 0:00:01]} 52. Ng3 {[%emt 0:00:07]} Rh2 {[%emt 0:00:12]} 53. Rg8 {[%emt 0:00:08]} Rb2 {[%emt 0:00:08]} 54. Kb4 {[%emt 0:00:17]} Nc7 {[%emt 0:00:09]} 55. Nf5+ {[%emt 0:00:03]} Kd7 {[%emt 0:00:17]} 56. Rf8 {[%emt 0:00:15]} Nxd5+ {[%emt 0:00:02]} 57. Kc4 {[%emt 0:00:00]} Nxf4 {[%emt 0:00:24]} 58. Rxf7+ {[%emt 0:00:11]} Ke6 {[%emt 0:00:01]} 59. Nh6 {[%emt 0:00:29]} Rh2 {[%emt 0:00:32]} 60. Rxf4 {[%emt 0:00:06]} Rxh6 {[%emt 0:00:02]} 61. Kb5 {[%emt 0:00:05]} d5 {[%emt 0:00:03]} 62. Rf8 {[%emt 0:00:12]} Kd7 {[%emt 0:00:20]} 63. Rf7+ {[%emt 0:00:04]} Kc8 {[%emt 0:00:00]} 64. Kc5 {[%emt 0:00:07]} Rc6+ {[%emt 0:00:03]} 65. Kxd5 {[%emt 0:00:04]} Kb8 {[%emt 0:00:14]} 66. b4 {[%emt 0:00:18]} Ka7 {[%emt 0:00:02]} 67. Rh7 {[%emt 0:00:18]} Rc1 {[%emt 0:00:09]} 68. a5 {[%emt 0:00:06]} Rg1 {[%emt 0:00:20]} 69. Re7 {[%emt 0:00:08]} Rg5+ {[%emt 0:00:14]} 70. Re5 {[%emt 0:00:05]} Rxe5+ {[%emt 0:00:04]} 71. Kxe5 {[%emt 0:00:02]} b6 {[%emt 0:00:03]} 1/2-1/2

[Event "FIDE Open World Rapid 2024"]
[Site "New York"]
[Date "2024.12.27"]
[Round "6.19"]
[White "Svane, Rasmus"]
[Black "Pranav, V."]
[Result "0-1"]
[ECO "A17"]
[WhiteElo "2628"]
[BlackElo "2621"]
[Annotator "ChessBase"]
[PlyCount "84"]
[EventDate "2024.12.14"]
[EventType "swiss"]
[EventCountry "USA"]
[SourceTitle "playchess.com"]
[Source "ChessBase"]
[SourceQuality "1"]
[TimeControl "900+10"]

1. Nf3 {[%emt 0:00:02]} Nf6 {[%emt 0:00:02]} 2. c4 {[%emt 0:00:01]} e6 {[%emt 0:00:02]} 3. Nc3 {[%emt 0:00:14]} Bb4 {[%emt 0:00:02]} 4. Qc2 {[%emt 0:00:04]} O-O {[%emt 0:00:03]} 5. a3 {[%emt 0:00:11]} Bxc3 {[%emt 0:00:02]} 6. Qxc3 {[%emt 0:00:02]} b6 {[%emt 0:00:01]} 7. b4 {[%emt 0:00:17]} Bb7 {[%emt 0:00:09]} 8. Bb2 {[%emt 0:00:02]} d6 {[%emt 0:00:07]} 9. e3 {[%emt 0:00:07]} Nbd7 {[%emt 0:00:13]} 10. Be2 {[%emt 0:00:06]} a5 {[%emt 0:00:18]} 11. O-O {[%emt 0:00:09]} Qe7 {[%emt 0:00:11]} 12. d3 {[%emt 0:00:56]} e5 {[%emt 0:02:06]} 13. Rfe1 {[%emt 0:04:28]} Rfe8 {[%emt 0:00:28]} 14. e4 {[%emt 0:00:35]} Nf8 {[%emt 0:01:02]} 15. Qc2 {[%emt 0:00:39]} Ng6 {[%emt 0:00:31]} 16. Bf1 {[%emt 0:00:27]} c5 {[%emt 0:02:50]} 17. Bc3 {[%emt 0:00:35]} Bc8 {[%emt 0:00:34]} 18. g3 {[%emt 0:00:22]} Bg4 {[%emt 0:04:26]} 19. Bg2 {[%emt 0:00:01]} Qd7 {[%emt 0:01:24]} 20. Nd2 {[%emt 0:01:49]} Bh3 {[%emt 0:00:02]} 21. Bh1 {[%emt 0:00:32]} axb4 {[%emt 0:01:21]} 22. axb4 {[%emt 0:00:02]} Nf4 {[%emt 0:00:03]} 23. Nf1 {[%emt 0:02:44]} Bxf1 {[%emt 0:01:08]} 24. Kxf1 {[%emt 0:02:29]} cxb4 {[%emt 0:00:08]} 25. gxf4 {[%emt 0:01:44]} bxc3 {[%emt 0:00:04]} 26. f5 {[%emt 0:00:11]} b5 {[%emt 0:00:59]} 27. Qxc3 {[%emt 0:00:09]} bxc4 {[%emt 0:00:01]} 28. Rxa8 {[%emt 0:00:09]} Rxa8 {[%emt 0:00:01]} 29. Qxc4 {[%emt 0:00:01]} Nh5 {[%emt 0:00:10]} 30. Bf3 {[%emt 0:00:42]} Nf4 {[%emt 0:00:01]} 31. d4 {[%emt 0:00:07]} Qe7 {[%emt 0:00:18]} 32. dxe5 {[%emt 0:00:13]} Qh4 {[%emt 0:00:27]} 33. Qc3 {[%emt 0:00:13]} Qh3+ {[%emt 0:00:42]} 34. Kg1 {[%emt 0:00:02]} dxe5 {[%emt 0:00:01]} 35. Ra1 {[%emt 0:00:14]} Rf8 {[%emt 0:00:31]} 36. Qe3 {[%emt 0:00:09]} h6 {[%emt 0:00:02]} 37. Bh1 {[%emt 0:00:11]} Qg4+ {[%emt 0:00:01]} 38. Kf1 {[%emt 0:00:02]} Rd8 {[%emt 0:00:01]} 39. Qf3 {[%emt 0:00:07]} Qh4 {[%emt 0:00:07]} 40. Qg3 {[%emt 0:00:08]} Qf6 {[%emt 0:00:01]} 41. Qg4 {[%emt 0:00:32]} h5 {[%emt 0:00:04]} 42. Qg3 {[%emt 0:00:06]} Qa6+ {[%emt 0:00:02]} 0-1

[Event "FIDE Open World Rapid 2024"]
[Site "New York"]
[Date "2024.12.27"]
[Round "6.19"]
[White "Ibarra Jerez, Jose Carlos"]
[Black "Druska, Juraj"]
[Result "1/2-1/2"]
[ECO "C47"]
[WhiteElo "2556"]
[BlackElo "2423"]
[Annotator "ChessBase"]
[PlyCount "61"]
[EventDate "2024.12.14"]
[EventType "swiss"]
[EventCountry "USA"]
[SourceTitle "playchess.com"]
[Source "ChessBase"]
[SourceQuality "1"]
[TimeControl "900+10"]

1. e4 {[%emt 0:00:13]} e5 {[%emt 0:00:11]} 2. Nf3 {[%emt 0:00:00]} Nf6 {[%emt 0:00:01]} 3. Nc3 {[%emt 0:00:21]} Nc6 {[%emt 0:00:03]} 4. a4 {[%emt 0:00:02]} h6 {[%emt 0:00:24]} 5. d4 {[%emt 0:00:55]} exd4 {[%emt 0:00:30]} 6. Nxd4 {[%emt 0:00:02]} Bb4 {[%emt 0:00:37]} 7. Nxc6 {[%emt 0:00:06]} bxc6 {[%emt 0:00:04]} 8. Bd3 {[%emt 0:00:04]} d5 {[%emt 0:00:30]} 9. Bd2 {[%emt 0:01:33]} O-O {[%emt 0:01:19]} 10. O-O {[%emt 0:00:04]} Bxc3 {[%emt 0:02:33]} 11. Bxc3 {[%emt 0:00:05]} dxe4 {[%emt 0:00:02]} 12. Bxf6 {[%emt 0:00:29]} Qxf6 {[%emt 0:00:02]} 13. Bxe4 {[%emt 0:00:02]} Qxb2 {[%emt 0:00:11]} 14. Bxc6 {[%emt 0:00:15]} Rb8 {[%emt 0:00:01]} 15. Rb1 {[%emt 0:00:20]} Qxb1 {[%emt 0:00:02]} 16. Qxb1 {[%emt 0:00:01]} Rxb1 {[%emt 0:00:02]} 17. Rxb1 {[%emt 0:00:01]} Rd8 {[%emt 0:00:55]} 18. Bf3 {[%emt 0:02:41]} Bf5 {[%emt 0:02:23]} 19. Rb7 {[%emt 0:00:34]} Bxc2 {[%emt 0:00:05]} 20. a5 {[%emt 0:00:37]} Be4 {[%emt 0:05:31]} 21. Rxc7 {[%emt 0:00:07]} Bxf3 {[%emt 0:00:01]} 22. gxf3 {[%emt 0:00:03]} Rd3 {[%emt 0:00:07]} 23. Kg2 {[%emt 0:00:29]} Ra3 {[%emt 0:00:11]} 24. Rxa7 {[%emt 0:00:00]} g5 {[%emt 0:00:07]} 25. a6 {[%emt 0:01:41]} Kg7 {[%emt 0:00:05]} 26. Ra8 {[%emt 0:00:41]} Kf6 {[%emt 0:00:59]} 27. Kf1 {[%emt 0:00:47]} Kf5 {[%emt 0:01:03]} 28. Kg2 {[%emt 0:01:08]} h5 {[%emt 0:00:18]} 29. a7 {[%emt 0:00:55]} h4 {[%emt 0:00:40]} 30. h3 {[%emt 0:02:17]} Kf4 {[%emt 0:00:16]} 31. Rb8 {[%emt 0:00:34]} 1/2-1/2